[Event "19th IPCA WCC 2019"]
[Site "Ruzomberok"]
[Date "2019.07.03"]
[Round "6.13"]
[White "Samarth J Rao"]
[Black "Wielecki, Zygmunt"]
[Result "0-1"]
[ECO "A44"]
[WhiteElo "1593"]
[BlackElo "2145"]
[Annotator "NA"]
[PlyCount "96"]
[EventDate "2019.06.28"]
[EventType "swiss"]
[EventCountry "SVK"]
[SourceTitle "playchess.com"]
[Source "ChessBase"]
[SourceQuality "1"]
[TimeControl "5400+30"]

1. d4 {[%emt 0:00:00]} c5 {[%emt 0:00:00]} 2. d5 {[%emt 0:00:00]} e5 {[%emt 0:00:12]} 3. c4 {[%emt 0:00:34]} d6 {[%emt 0:00:10]} 4. Nc3 {[%emt 0:00:31]} Ne7 {[%emt 0:00:52]} 5. e4 {[%emt 0:00:43]} Ng6 {[%emt 0:00:20]} 6. g3 {[%emt 0:00:18]} Be7 {[%emt 0:00:38]} 7. Bg2 {[%emt 0:00:08]} Bg5 {[%emt 0:01:58]} 8. Nge2 {[%emt 0:00:44]} Bxc1 {[%emt 0:03:16]} 9. Qxc1 {[%emt 0:00:32]} O-O {[%emt 0:02:19]} 10. O-O {[%emt 0:00:43]} a6 {[%emt 0:06:20]} 11. f4 {[%emt 0:01:04]} exf4 {[%emt 0:00:10]} 12. Nxf4 {[%emt 0:00:18]} Nd7 {[%emt 0:00:50]} 13. Rb1 {[%emt 0:08:41]} Nde5 {[%emt 0:00:25]} 14. Nce2 {[%emt 0:00:10]} b5 {[%emt 0:03:43]} 15. b3 {[%emt 0:01:42]} Qa5 {[%emt 0:04:06]} 16. a3 {[%emt 0:02:07]} Bd7 {[%emt 0:06:07]} 17. Kh1 {[%emt 0:02:37]} bxc4 {[%emt 0:01:55]} 18. bxc4 {[%emt 0:02:11]} Rab8 {[%emt 0:04:40]} 19. Nxg6 hxg6 {[%emt 0:00:20]} 20. Ng1 {[%emt 0:19:51]} Qa4 {[%emt 0:04:34]} 21. Nf3 {[%emt 0:04:11]} Nxc4 {[%emt 0:00:40]} 22. Qf4 {[%emt 0:01:08]} f6 {[%emt 0:02:43]} 23. Rfc1 {[%emt 0:09:06]} g5 {[%emt 0:00:54]} 24. Nxg5 fxg5 {[%emt 0:00:19]} 25. Qxg5 {[%emt 0:00:39]} Rxb1 {[%emt 0:02:33]} 26. Rxb1 {[%emt 0:00:08]} Qc2 {[%emt 0:00:30]} 27. Rc1 {[%emt 0:00:46]} Qd2 {[%emt 0:00:14]} 28. Qxd2 {[%emt 0:00:57]} Nxd2 {[%emt 0:00:08]} 29. Rc2 {[%emt 0:00:21]} Nb3 {[%emt 0:02:10]} 30. Rc3 {[%emt 0:00:31]} Rb8 {[%emt 0:00:36]} 31. Bf1 {[%emt 0:00:31]} a5 {[%emt 0:00:29]} 32. Bc4 {[%emt 0:00:38]} Nd2 {[%emt 0:00:12]} 33. Bd3 {[%emt 0:00:18]} Bh3 {[%emt 0:00:19]} 34. Rc1 {[%emt 0:01:22]} Rb2 {[%emt 0:00:13]} 35. Bc2 {[%emt 0:02:45]} Nf3 {[%emt 0:00:11]} 36. e5 {[%emt 0:00:40]} Nxe5 {[%emt 0:00:31]} 37. Be4 {[%emt 0:01:18]} Re2 {[%emt 0:00:34]} 38. Rb1 {[%emt 0:00:24]} Rxe4 {[%emt 0:00:10]} 39. Kg1 {[%emt 0:00:40]} Re2 {[%emt 0:00:07]} 40. Rf1 {[%emt 0:00:19]} Bxf1 {[%emt 0:00:38]} 41. Kxf1 {[%emt 0:00:02]} Re4 {[%emt 0:00:23]} 42. Kf2 {[%emt 0:00:11]} c4 {[%emt 0:00:14]} 43. h4 {[%emt 0:00:08]} c3 {[%emt 0:00:09]} 44. h5 {[%emt 0:00:08]} c2 {[%emt 0:00:08]} 45. g4 {[%emt 0:00:06]} c1=Q {[%emt 0:00:12]} 46. g5 {[%emt 0:00:12]} Qe1+ {[%emt 0:00:13]} 47. Kg2 {[%emt 0:00:04]} Rg4+ {[%emt 0:00:13]} 48. Kh2 {[%emt 0:00:10]} Qh4# 0-1

[Event "19th IPCA WCC 2019"]
[Site "Ruzomberok"]
[Date "2019.07.03"]
[Round "6.14"]
[White "Kozicz, Andrzej"]
[Black "Zicho, Anton"]
[Result "1-0"]
[ECO "B01"]
[WhiteElo "1979"]
[BlackElo "1662"]
[Annotator "NA"]
[PlyCount "63"]
[EventDate "2019.06.28"]
[EventType "swiss"]
[EventCountry "SVK"]
[SourceTitle "playchess.com"]
[Source "ChessBase"]
[SourceQuality "1"]
[TimeControl "5400+30"]

1. e4 {[%emt 0:00:00]} d5 {[%emt 0:02:02]} 2. exd5 {[%emt 0:00:00]} Qxd5 {[%emt 0:00:24]} 3. Nc3 {[%emt 0:00:08]} Qa5 {[%emt 0:00:06]} 4. d4 {[%emt 0:00:32]} Nf6 {[%emt 0:00:20]} 5. Bd3 {[%emt 0:00:31]} Bg4 {[%emt 0:01:11]} 6. Nge2 {[%emt 0:01:00]} e6 {[%emt 0:00:44]} 7. f3 {[%emt 0:00:32]} Bh5 {[%emt 0:02:20]} 8. Bd2 {[%emt 0:00:43]} c6 {[%emt 0:01:31]} 9. Qc1 {[%emt 0:13:22]} Bg6 {[%emt 0:06:53]} 10. Ne4 {[%emt 0:00:34]} Qd8 {[%emt 0:00:12]} 11. Nxf6+ {[%emt 0:00:04]} Qxf6 {[%emt 0:00:24]} 12. Bg5 {[%emt 0:00:03]} Qxg5 {[%emt 0:02:37]} 13. Qxg5 {[%emt 0:00:04]} Bxd3 {[%emt 0:00:17]} 14. cxd3 {[%emt 0:00:37]} Bb4+ {[%emt 0:00:08]} 15. Nc3 {[%emt 0:00:08]} O-O {[%emt 0:00:41]} 16. O-O {[%emt 0:00:16]} Nd7 {[%emt 0:00:51]} 17. Ne4 {[%emt 0:00:27]} h6 {[%emt 0:02:08]} 18. Qh5 {[%emt 0:00:30]} Rad8 {[%emt 0:02:06]} 19. Rad1 {[%emt 0:01:14]} f5 {[%emt 0:03:20]} 20. Nc3 {[%emt 0:00:41]} Nf6 {[%emt 0:04:25]} 21. Qh4 {[%emt 0:00:13]} Kh7 {[%emt 0:00:45]} 22. Kh1 {[%emt 0:01:36]} g5 {[%emt 0:00:47]} 23. Qf2 {[%emt 0:00:14]} Ba5 {[%emt 0:03:52]} 24. Qc2 {[%emt 0:00:26]} Bb6 {[%emt 0:01:20]} 25. Qb3 {[%emt 0:00:22]} Rfe8 {[%emt 0:02:17]} 26. Na4 {[%emt 0:00:58]} Nd5 {[%emt 0:01:12]} 27. Rfe1 {[%emt 0:00:32]} Bxd4 {[%emt 0:01:42]} 28. Qxb7+ {[%emt 0:01:35]} Re7 {[%emt 0:01:18]} 29. Qxc6 {[%emt 0:00:52]} e5 {[%emt 0:01:09]} 30. Rc1 {[%emt 0:03:18]} Nf4 {[%emt 0:01:56]} 31. Qf6 {[%emt 0:00:41]} Red7 {[%emt 0:01:20]} 32. Rc6 {[%emt 0:00:27]} 1-0

[Event "19th IPCA WCC 2019"]
[Site "Ruzomberok"]
[Date "2019.07.03"]
[Round "6.15"]
[White "Gerasimova, Svetlana"]
[Black "Spirka, Jan"]
[Result "1-0"]
[ECO "C00"]
[WhiteElo "1913"]
[BlackElo "1366"]
[Annotator "NA"]
[PlyCount "102"]
[EventDate "2019.06.28"]
[EventType "swiss"]
[EventCountry "SVK"]
[SourceTitle "playchess.com"]
[Source "ChessBase"]
[SourceQuality "1"]
[TimeControl "5400+30"]

1. e4 {[%emt 0:00:00]} e6 {[%emt 0:00:37]} 2. d4 {[%emt 0:00:18]} d6 {[%emt 0:00:42]} 3. Nc3 {[%emt 0:00:11]} Nf6 {[%emt 0:00:47]} 4. Be3 {[%emt 0:00:12]} Be7 {[%emt 0:00:23]} 5. f3 {[%emt 0:01:03]} Bd7 {[%emt 0:00:57]} 6. Qd2 {[%emt 0:01:05]} h6 {[%emt 0:00:47]} 7. O-O-O {[%emt 0:00:15]} O-O {[%emt 0:01:27]} 8. g4 {[%emt 0:00:54]} Nh7 {[%emt 0:00:34]} 9. Kb1 {[%emt 0:00:39]} Nc6 {[%emt 0:01:57]} 10. h4 {[%emt 0:01:54]} a6 {[%emt 0:01:42]} 11. Qh2 {[%emt 0:01:44]} f6 {[%emt 0:03:29]} 12. f4 {[%emt 0:01:52]} Rf7 {[%emt 0:03:10]} 13. g5 {[%emt 0:00:10]} Rf8 {[%emt 0:01:16]} 14. g6 {[%emt 0:00:18]} b5 {[%emt 0:02:28]} 15. gxh7+ {[%emt 0:00:12]} Kxh7 {[%emt 0:00:27]} 16. Nf3 {[%emt 0:00:11]} b4 {[%emt 0:02:07]} 17. Ne2 {[%emt 0:00:08]} Na5 {[%emt 0:00:18]} 18. Rg1 {[%emt 0:01:24]} Nc4 19. Bc1 f5 {[%emt 0:03:51]} 20. Qg2 {[%emt 0:02:09]} Rg8 {[%emt 0:01:21]} 21. Qg6+ {[%emt 0:00:10]} Kh8 {[%emt 0:00:15]} 22. Ng5 {[%emt 0:00:22]} Bxg5 23. hxg5 Qe8 {[%emt 0:01:19]} 24. gxh6 {[%emt 0:01:16]} Qxg6 25. Rxg6 Kh7 {[%emt 0:02:29]} 26. Rxg7+ {[%emt 0:00:53]} Rxg7 {[%emt 0:00:22]} 27. hxg7 {[%emt 0:00:05]} Kxg7 28. exf5 exf5 {[%emt 0:02:06]} 29. Ng3 {[%emt 0:00:34]} Kg6 {[%emt 0:00:20]} 30. Bxc4 {[%emt 0:00:05]} a5 {[%emt 0:00:54]} 31. Rg1 {[%emt 0:00:08]} Kf6 {[%emt 0:00:31]} 32. Nh5+ {[%emt 0:00:14]} Ke7 {[%emt 0:00:55]} 33. Rg7+ {[%emt 0:00:05]} Kd8 {[%emt 0:00:07]} 34. Rg8+ {[%emt 0:00:05]} Be8 {[%emt 0:00:02]} 35. Ng7 {[%emt 0:00:49]} Ke7 {[%emt 0:00:06]} 36. Rxe8+ {[%emt 0:00:26]} Rxe8 {[%emt 0:00:10]} 37. Nxe8 {[%emt 0:00:04]} Kxe8 {[%emt 0:00:13]} 38. Be6 {[%emt 0:00:07]} Ke7 {[%emt 0:00:13]} 39. Bxf5 {[%emt 0:00:05]} Kf6 {[%emt 0:00:28]} 40. Be4 {[%emt 0:00:05]} Ke6 {[%emt 0:00:40]} 41. c3 {[%emt 0:00:11]} bxc3 {[%emt 0:00:24]} 42. bxc3 {[%emt 0:00:01]} d5 {[%emt 0:00:39]} 43. Bd3 {[%emt 0:00:10]} c6 {[%emt 0:00:15]} 44. f5+ {[%emt 0:00:12]} Kf6 {[%emt 0:00:22]} 45. Bf4 {[%emt 0:00:06]} a4 {[%emt 0:00:38]} 46. Be5+ {[%emt 0:00:04]} Kf7 {[%emt 0:00:09]} 47. f6 {[%emt 0:00:08]} a3 48. Be2 {[%emt 0:00:08]} Kg6 {[%emt 0:00:58]} 49. Kc2 {[%emt 0:00:07]} Kf7 {[%emt 0:00:12]} 50. Bh5+ {[%emt 0:00:30]} Kg8 {[%emt 0:00:16]} 51. f7+ Kf8 1-0

[Event "19th IPCA WCC 2019"]
[Site "Ruzomberok"]
[Date "2019.07.03"]
[Round "6.16"]
[White "Belak, Stefan"]
[Black "Konkolova, Nikola"]
[Result "1-0"]
[ECO "A40"]
[WhiteElo "1851"]
[BlackElo "1518"]
[Annotator "NA"]
[PlyCount "117"]
[EventDate "2019.06.28"]
[EventType "swiss"]
[EventCountry "SVK"]
[SourceTitle "playchess.com"]
[Source "ChessBase"]
[SourceQuality "1"]
[TimeControl "5400+30"]

1. d4 {[%emt 0:00:00]} e6 {[%emt 0:00:00]} 2. Nf3 {[%emt 0:00:00]} c6 {[%emt 0:00:00]} 3. c3 {[%emt 0:00:54]} d5 {[%emt 0:00:43]} 4. Bf4 {[%emt 0:00:11]} Bd6 {[%emt 0:01:43]} 5. Bg3 {[%emt 0:00:10]} Bxg3 {[%emt 0:01:18]} 6. hxg3 {[%emt 0:00:09]} Qb6 {[%emt 0:00:50]} 7. Qb3 {[%emt 0:00:09]} Qxb3 {[%emt 0:00:47]} 8. axb3 {[%emt 0:00:11]} Nd7 {[%emt 0:00:47]} 9. b4 {[%emt 0:00:50]} b6 {[%emt 0:01:34]} 10. e3 {[%emt 0:00:11]} Ngf6 {[%emt 0:04:12]} 11. Nbd2 {[%emt 0:00:34]} Bb7 {[%emt 0:01:17]} 12. Bd3 {[%emt 0:00:39]} c5 {[%emt 0:01:07]} 13. bxc5 {[%emt 0:00:24]} bxc5 {[%emt 0:00:16]} 14. Bb5 {[%emt 0:07:18]} O-O {[%emt 0:03:18]} 15. O-O {[%emt 0:01:13]} cxd4 {[%emt 0:02:53]} 16. exd4 {[%emt 0:00:11]} Rfc8 {[%emt 0:01:51]} 17. Rfe1 {[%emt 0:01:15]} Bc6 {[%emt 0:01:51]} 18. Ba6 {[%emt 0:03:22]} Rcb8 {[%emt 0:00:53]} 19. b4 {[%emt 0:00:17]} Bb5 {[%emt 0:00:40]} 20. Bxb5 {[%emt 0:07:27]} Rxb5 {[%emt 0:00:12]} 21. Ra3 {[%emt 0:00:05]} Rb7 {[%emt 0:04:30]} 22. Rea1 {[%emt 0:00:42]} Rc8 {[%emt 0:01:52]} 23. Nb1 {[%emt 0:03:11]} Rcc7 {[%emt 0:13:32]} 24. Kf1 {[%emt 0:01:12]} Kf8 {[%emt 0:00:47]} 25. Ke2 {[%emt 0:00:09]} Nb6 {[%emt 0:01:03]} 26. Nfd2 {[%emt 0:02:44]} Ke7 {[%emt 0:02:27]} 27. f3 {[%emt 0:09:36]} Nh5 {[%emt 0:01:13]} 28. Kf2 {[%emt 0:00:19]} Nf6 {[%emt 0:01:02]} 29. Ke3 {[%emt 0:00:29]} Nfd7 {[%emt 0:04:56]} 30. f4 {[%emt 0:01:07]} f6 {[%emt 0:00:25]} 31. g4 {[%emt 0:02:49]} e5 {[%emt 0:02:48]} 32. g3 {[%emt 0:00:14]} exd4+ {[%emt 0:00:57]} 33. Kxd4 {[%emt 0:00:16]} Nc4 {[%emt 0:03:58]} 34. Nxc4 {[%emt 0:00:33]} Rxc4+ {[%emt 0:00:13]} 35. Kd3 {[%emt 0:00:19]} Rcc7 {[%emt 0:01:10]} 36. Nd2 {[%emt 0:00:36]} Kd6 {[%emt 0:01:19]} 37. Nb3 {[%emt 0:01:17]} h6 {[%emt 0:02:36]} 38. Ra6+ {[%emt 0:00:40]} Ke7 {[%emt 0:01:39]} 39. Nd4 {[%emt 0:00:30]} Nb6 {[%emt 0:00:54]} 40. Nb5 {[%emt 0:01:54]} Rd7 {[%emt 0:01:11]} 41. Rxa7 {[%emt 0:00:30]} Rxa7 {[%emt 0:00:11]} 42. Rxa7 {[%emt 0:00:10]} Rxa7 {[%emt 0:00:05]} 43. Nxa7 {[%emt 0:00:11]} Kd6 {[%emt 0:00:36]} 44. Nb5+ {[%emt 0:00:23]} Kd7 {[%emt 0:00:30]} 45. Nd4 {[%emt 0:00:14]} g6 {[%emt 0:00:11]} 46. Nf3 {[%emt 0:00:53]} Kc6 {[%emt 0:01:58]} 47. g5 {[%emt 0:00:17]} hxg5 {[%emt 0:00:41]} 48. fxg5 {[%emt 0:00:27]} fxg5 {[%emt 0:00:20]} 49. Nxg5 {[%emt 0:00:18]} Nd7 {[%emt 0:01:05]} 50. Kd4 {[%emt 0:00:32]} Kd6 {[%emt 0:00:35]} 51. Nf3 {[%emt 0:01:11]} Nf6 {[%emt 0:00:43]} 52. Ne5 {[%emt 0:01:18]} Ne4 {[%emt 0:00:34]} 53. c4 {[%emt 0:02:33]} Nxg3 {[%emt 0:03:36]} 54. c5+ {[%emt 0:00:43]} Kc7 {[%emt 0:00:12]} 55. Nxg6 {[%emt 0:00:15]} Nf5+ {[%emt 0:00:48]} 56. Kxd5 {[%emt 0:00:46]} Ne3+ {[%emt 0:00:21]} 57. Kd4 {[%emt 0:00:17]} Nc2+ {[%emt 0:00:43]} 58. Kc3 {[%emt 0:02:10]} Ne3 {[%emt 0:00:24]} 59. b5 {[%emt 0:00:24]} 1-0

[Event "19th IPCA WCC 2019"]
[Site "Ruzomberok"]
[Date "2019.07.03"]
[Round "6.17"]
[White "Pamarthi Audietya Aazadh"]
[Black "Kaydanovich, Marina"]
[Result "1-0"]
[ECO "C50"]
[WhiteElo "1346"]
[BlackElo "1760"]
[Annotator "NA"]
[PlyCount "91"]
[EventDate "2019.06.28"]
[EventType "swiss"]
[EventCountry "SVK"]
[SourceTitle "playchess.com"]
[Source "ChessBase"]
[SourceQuality "1"]
[TimeControl "5400+30"]

1. e4 {[%emt 0:00:00]} e5 {[%emt 0:00:00]} 2. Nf3 {[%emt 0:00:00]} Nc6 {[%emt 0:00:00]} 3. Bc4 {[%emt 0:00:01]} Bc5 {[%emt 0:00:00]} 4. d3 {[%emt 0:00:12]} Nf6 {[%emt 0:00:19]} 5. Bg5 {[%emt 0:00:37]} h6 {[%emt 0:00:10]} 6. Bh4 {[%emt 0:00:20]} d6 {[%emt 0:00:24]} 7. h3 {[%emt 0:00:09]} Qe7 {[%emt 0:00:34]} 8. Nc3 {[%emt 0:00:34]} Be6 {[%emt 0:01:41]} 9. Nd5 {[%emt 0:01:11]} Bxd5 {[%emt 0:00:12]} 10. Bxd5 {[%emt 0:00:19]} Nd8 {[%emt 0:00:15]} 11. c3 {[%emt 0:00:15]} c6 {[%emt 0:00:36]} 12. Bb3 {[%emt 0:00:18]} O-O {[%emt 0:00:31]} 13. O-O {[%emt 0:00:34]} Bb6 {[%emt 0:00:38]} 14. Re1 {[%emt 0:02:24]} Ne6 {[%emt 0:01:19]} 15. Qd2 {[%emt 0:00:46]} Nf4 {[%emt 0:02:07]} 16. Kh2 {[%emt 0:02:55]} Rad8 {[%emt 0:03:29]} 17. Rad1 {[%emt 0:00:39]} Ng6 {[%emt 0:01:03]} 18. Bg3 {[%emt 0:00:48]} Nh5 {[%emt 0:01:17]} 19. d4 {[%emt 0:00:48]} Nxg3 {[%emt 0:00:29]} 20. fxg3 {[%emt 0:00:13]} Qc7 {[%emt 0:03:02]} 21. Qe2 {[%emt 0:00:39]} Qe7 {[%emt 0:04:29]} 22. Ng1 {[%emt 0:05:27]} Kh7 {[%emt 0:03:10]} 23. Rf1 {[%emt 0:00:50]} f6 {[%emt 0:03:00]} 24. Qf3 {[%emt 0:00:18]} Qd7 {[%emt 0:06:22]} 25. h4 {[%emt 0:02:12]} Qc8 {[%emt 0:07:20]} 26. Nh3 {[%emt 0:00:51]} c5 {[%emt 0:01:15]} 27. dxc5 {[%emt 0:01:24]} dxc5 {[%emt 0:03:03]} 28. Bd5 {[%emt 0:00:27]} Ne7 {[%emt 0:01:31]} 29. c4 {[%emt 0:00:49]} Nc6 {[%emt 0:00:33]} 30. Bxc6 {[%emt 0:01:35]} Qxc6 {[%emt 0:00:04]} 31. Rd5 {[%emt 0:00:29]} Bc7 {[%emt 0:06:03]} 32. b3 {[%emt 0:00:29]} b6 {[%emt 0:02:53]} 33. Rfd1 {[%emt 0:00:24]} Qe6 {[%emt 0:00:16]} 34. g4 {[%emt 0:02:01]} g6 {[%emt 0:03:42]} 35. R1d3 {[%emt 0:07:17]} Rde8 {[%emt 0:11:13]} 36. g3 {[%emt 0:01:32]} Rf7 {[%emt 0:02:38]} 37. Kg2 {[%emt 0:00:22]} f5 {[%emt 0:04:09]} 38. gxf5 {[%emt 0:00:39]} gxf5 {[%emt 0:00:03]} 39. Qh5 {[%emt 0:00:23]} Kg8 {[%emt 0:01:41]} 40. exf5 {[%emt 0:01:09]} Rxf5 {[%emt 0:03:02]} 41. Qg4+ {[%emt 0:00:34]} Kf8 {[%emt 0:00:29]} 42. Rd7 {[%emt 0:00:56]} Rf7 {[%emt 0:00:59]} 43. Rxf7+ {[%emt 0:03:30]} Kxf7 {[%emt 0:00:21]} 44. Rf3+ {[%emt 0:11:02]} Ke7 {[%emt 0:00:03]} 45. Qe4 {[%emt 0:01:21]} Qd6 {[%emt 0:03:15]} 46. Qh7+ 1-0

[Event "19th IPCA WCC 2019"]
[Site "Ruzomberok"]
[Date "2019.07.03"]
[Round "6.18"]
[White "Sovietova, Kateryna"]
[Black "Felegyi, Karoly"]
[Result "1-0"]
[ECO "D00"]
[WhiteElo "1279"]
[BlackElo "1674"]
[Annotator "NA"]
[PlyCount "45"]
[EventDate "2019.06.28"]
[EventType "swiss"]
[EventCountry "SVK"]
[SourceTitle "playchess.com"]
[Source "ChessBase"]
[SourceQuality "1"]
[TimeControl "5400+30"]

1. d4 {[%emt 0:00:00]} d5 {[%emt 0:00:00]} 2. Bf4 {[%emt 0:00:00]} Nf6 {[%emt 0:00:52]} 3. h3 {[%emt 0:00:13]} e6 {[%emt 0:01:16]} 4. e3 {[%emt 0:00:31]} Ne4 {[%emt 0:01:08]} 5. Nf3 {[%emt 0:00:35]} Bd7 {[%emt 0:02:05]} 6. Nbd2 {[%emt 0:02:30]} Nxd2 {[%emt 0:03:34]} 7. Qxd2 {[%emt 0:01:17]} c5 {[%emt 0:00:14]} 8. c3 {[%emt 0:00:34]} Nc6 {[%emt 0:00:49]} 9. Bd3 {[%emt 0:02:56]} Qb6 {[%emt 0:05:21]} 10. O-O {[%emt 0:03:01]} cxd4 {[%emt 0:01:52]} 11. exd4 {[%emt 0:00:35]} Na5 {[%emt 0:01:30]} 12. Ne5 {[%emt 0:08:01]} Bb5 {[%emt 0:03:01]} 13. Bxb5+ {[%emt 0:01:47]} Qxb5 {[%emt 0:00:12]} 14. Rfe1 {[%emt 0:02:14]} Nc4 {[%emt 0:06:53]} 15. Nxc4 {[%emt 0:00:44]} dxc4 {[%emt 0:01:54]} 16. Qe2 {[%emt 0:05:23]} Qd5 {[%emt 0:02:42]} 17. Rad1 {[%emt 0:02:03]} O-O-O {[%emt 0:11:58]} 18. Qf1 {[%emt 0:05:49]} Bd6 {[%emt 0:02:00]} 19. Bxd6 {[%emt 0:01:14]} Rxd6 {[%emt 0:00:12]} 20. Re5 {[%emt 0:01:22]} Qc6 {[%emt 0:00:24]} 21. Rc5 {[%emt 0:00:46]} Rhd8 {[%emt 0:03:55]} 22. Rxc6+ {[%emt 0:01:06]} bxc6 {[%emt 0:00:02]} 23. Qxc4 1-0

[Event "19th IPCA WCC 2019"]
[Site "Ruzomberok"]
[Date "2019.07.03"]
[Round "6.19"]
[White "Angappan A"]
[Black "Frumin, Rebeka"]
[Result "1/2-1/2"]
[ECO "B45"]
[WhiteElo "1267"]
[BlackElo "1398"]
[Annotator "NA"]
[PlyCount "70"]
[EventDate "2019.06.28"]
[EventType "swiss"]
[EventCountry "SVK"]
[SourceTitle "playchess.com"]
[Source "ChessBase"]
[SourceQuality "1"]
[TimeControl "5400+30"]

1. e4 {[%emt 0:00:00]} c5 {[%emt 0:00:00]} 2. Nf3 {[%emt 0:00:00]} e6 {[%emt 0:00:37]} 3. d4 {[%emt 0:00:00]} cxd4 {[%emt 0:01:25]} 4. Nxd4 {[%emt 0:00:09]} Nc6 {[%emt 0:01:53]} 5. Nc3 {[%emt 0:00:21]} Bb4 {[%emt 0:02:07]} 6. Nb3 {[%emt 0:02:08]} Nge7 {[%emt 0:02:44]} 7. Bd2 {[%emt 0:00:40]} h6 {[%emt 0:01:51]} 8. Be2 {[%emt 0:00:14]} O-O {[%emt 0:00:26]} 9. O-O {[%emt 0:00:14]} Ng6 {[%emt 0:02:04]} 10. Kh1 {[%emt 0:03:18]} Qh4 {[%emt 0:04:03]} 11. g3 {[%emt 0:03:05]} Qd8 {[%emt 0:02:27]} 12. a3 {[%emt 0:00:19]} Bxc3 {[%emt 0:00:42]} 13. Bxc3 {[%emt 0:00:11]} e5 {[%emt 0:01:41]} 14. Bh5 {[%emt 0:03:04]} Nh8 {[%emt 0:02:21]} 15. Qd6 {[%emt 0:05:22]} Qg5 {[%emt 0:03:44]} 16. Bf3 {[%emt 0:02:13]} Ng6 {[%emt 0:02:27]} 17. Bd2 {[%emt 0:02:15]} Qd8 {[%emt 0:00:59]} 18. Bh5 {[%emt 0:02:24]} Nh8 {[%emt 0:03:44]} 19. f4 {[%emt 0:02:57]} exf4 {[%emt 0:02:27]} 20. Rxf4 {[%emt 0:00:23]} Ne7 {[%emt 0:03:12]} 21. Raf1 {[%emt 0:04:47]} Neg6 {[%emt 0:03:11]} 22. R4f2 {[%emt 0:05:22]} b6 {[%emt 0:01:48]} 23. Qd5 {[%emt 0:01:37]} Ba6 {[%emt 0:01:49]} 24. Rxf7 {[%emt 0:14:15]} Nxf7 {[%emt 0:02:16]} 25. Rxf7 {[%emt 0:00:22]} Rxf7 {[%emt 0:00:36]} 26. Bxg6 {[%emt 0:00:15]} Qf6 {[%emt 0:00:46]} 27. Bxf7+ Qxf7 28. Qxa8+ {[%emt 0:02:45]} Kh7 {[%emt 0:00:39]} 29. Bf4 {[%emt 0:02:25]} Qc4 {[%emt 0:01:31]} 30. Nd2 {[%emt 0:01:09]} Qe2 {[%emt 0:02:33]} 31. e5 {[%emt 0:11:21]} Qe1+ {[%emt 0:00:29]} 32. Kg2 {[%emt 0:00:09]} Qe2+ {[%emt 0:00:22]} 33. Kh3 {[%emt 0:00:07]} Qh5+ {[%emt 0:00:16]} 34. Kg2 Qe2+ 35. Kg1 {[%emt 0:02:04]} Qe1+ {[%emt 0:00:48]} 1/2-1/2

[Event "19th IPCA WCC 2019"]
[Site "Ruzomberok"]
[Date "2019.07.03"]
[Round "6.22"]
[White "Pilimon, Zbigniew"]
[Black "Kostova, Erika"]
[Result "1-0"]
[ECO "A40"]
[WhiteElo "1670"]
[BlackElo "1210"]
[Annotator "NA"]
[PlyCount "35"]
[EventDate "2019.06.28"]
[EventType "swiss"]
[EventCountry "SVK"]
[SourceTitle "playchess.com"]
[Source "ChessBase"]
[SourceQuality "1"]
[TimeControl "5400+30"]

1. d4 {[%emt 0:00:00]} e6 {[%emt 0:00:00]} 2. c4 {[%emt 0:00:00]} d5 {[%emt 0:00:00]} 3. Nf3 {[%emt 0:00:08]} c5 {[%emt 0:00:02]} 4. Nc3 {[%emt 0:00:49]} Nc6 {[%emt 0:00:22]} 5. Bf4 {[%emt 0:02:04]} Nf6 {[%emt 0:00:37]} 6. e3 {[%emt 0:00:48]} Qa5 {[%emt 0:01:02]} 7. Bd3 {[%emt 0:00:34]} Be7 {[%emt 0:03:30]} 8. O-O {[%emt 0:00:18]} O-O {[%emt 0:00:19]} 9. Qe2 {[%emt 0:01:09]} Nb4 {[%emt 0:01:20]} 10. Rfd1 {[%emt 0:03:24]} Nd7 {[%emt 0:04:36]} 11. a3 {[%emt 0:00:33]} Nc6 {[%emt 0:00:32]} 12. Bc2 {[%emt 0:01:56]} Qd8 {[%emt 0:01:01]} 13. Rac1 {[%emt 0:00:52]} b6 {[%emt 0:00:33]} 14. dxc5 {[%emt 0:00:36]} dxc4 {[%emt 0:03:17]} 15. cxb6 {[%emt 0:00:46]} Qxb6 {[%emt 0:01:04]} 16. Qxc4 {[%emt 0:00:28]} Na5 {[%emt 0:01:40]} 17. Qd3 {[%emt 0:01:12]} Nc5 {[%emt 0:00:55]} 18. Qxh7# {[%emt 0:00:25]} 1-0

[Event "19th IPCA WCC 2019"]
[Site "Ruzomberok"]
[Date "2019.07.04"]
[Round "7.1"]
[White "Mukha, Nikolay"]
[Black "Babula, Milan"]
[Result "1/2-1/2"]
[ECO "A97"]
[WhiteElo "2159"]
[BlackElo "2220"]
[Annotator "NA"]
[PlyCount "101"]
[EventDate "2019.06.28"]
[EventType "swiss"]
[EventCountry "SVK"]
[SourceTitle "playchess.com"]
[Source "ChessBase"]
[SourceQuality "1"]
[TimeControl "5400+30"]

1. d4 {[%emt 0:00:00]} e6 {[%emt 0:00:00]} 2. c4 {[%emt 0:00:00]} f5 {[%emt 0:00:00]} 3. Nf3 {[%emt 0:01:08]} Nf6 {[%emt 0:00:00]} 4. g3 {[%emt 0:02:02]} Be7 {[%emt 0:00:00]} 5. Bg2 {[%emt 0:00:17]} O-O {[%emt 0:00:00]} 6. O-O {[%emt 0:00:06]} d6 {[%emt 0:00:00]} 7. Nc3 {[%emt 0:01:23]} Qe8 {[%emt 0:02:45]} 8. Bg5 {[%emt 0:03:17]} Nbd7 {[%emt 0:02:35]} 9. Qc2 {[%emt 0:12:41]} h6 {[%emt 0:02:58]} 10. Bxf6 {[%emt 0:01:27]} Nxf6 {[%emt 0:00:16]} 11. e4 fxe4 {[%emt 0:05:24]} 12. Nxe4 {[%emt 0:01:03]} Bd7 {[%emt 0:02:42]} 13. Rae1 {[%emt 0:00:58]} Qh5 {[%emt 0:03:04]} 14. Nfd2 {[%emt 0:03:56]} Rae8 {[%emt 0:13:57]} 15. f4 {[%emt 0:10:28]} Bc6 {[%emt 0:09:30]} 16. b4 {[%emt 0:04:14]} a6 {[%emt 0:13:33]} 17. a4 {[%emt 0:00:21]} Qf5 {[%emt 0:14:49]} 18. b5 {[%emt 0:01:54]} axb5 {[%emt 0:00:55]} 19. axb5 {[%emt 0:00:50]} Bd7 {[%emt 0:09:09]} 20. Nb3 {[%emt 0:10:19]} Kh8 {[%emt 0:06:17]} 21. Qe2 {[%emt 0:03:01]} c6 {[%emt 0:02:59]} 22. c5 {[%emt 0:07:15]} d5 {[%emt 0:03:29]} 23. Nc3 {[%emt 0:00:03]} Ra8 {[%emt 0:02:23]} 24. b6 {[%emt 0:02:48]} Ra3 {[%emt 0:00:02]} 25. Qd1 {[%emt 0:00:39]} Nh7 {[%emt 0:02:33]} 26. Re5 {[%emt 0:00:56]} Qf7 {[%emt 0:00:03]} 27. Nb1 {[%emt 0:05:41]} Ra2 {[%emt 0:00:25]} 28. N1d2 {[%emt 0:01:14]} Bf6 {[%emt 0:00:21]} 29. Nf3 {[%emt 0:00:27]} Rfa8 {[%emt 0:00:35]} 30. Re2 {[%emt 0:01:20]} Nf8 {[%emt 0:01:43]} 31. Rxa2 {[%emt 0:01:55]} Rxa2 {[%emt 0:00:02]} 32. Qb1 {[%emt 0:00:20]} Ra3 {[%emt 0:00:22]} 33. Qb2 {[%emt 0:01:31]} Ra8 {[%emt 0:00:30]} 34. Qd2 {[%emt 0:01:10]} Be8 {[%emt 0:00:49]} 35. Na5 {[%emt 0:01:17]} Qe7 {[%emt 0:00:45]} 36. Ne5 {[%emt 0:05:01]} Bg6 {[%emt 0:00:25]} 37. Naxc6 {[%emt 0:05:06]} bxc6 {[%emt 0:00:03]} 38. Nxc6 {[%emt 0:00:13]} Qb7 {[%emt 0:01:32]} 39. Nb4 {[%emt 0:01:58]} Be8 {[%emt 0:00:11]} 40. Rb1 {[%emt 0:01:40]} Bc6 {[%emt 0:01:13]} 41. Bf1 {[%emt 0:00:56]} Nd7 {[%emt 0:01:03]} 42. Nxc6 {[%emt 0:04:01]} Qxc6 {[%emt 0:00:01]} 43. Bb5 {[%emt 0:00:23]} Qb7 {[%emt 0:00:02]} 44. c6 {[%emt 0:01:50]} Qxb6 {[%emt 0:00:02]} 45. cxd7 {[%emt 0:00:27]} Qxd4+ {[%emt 0:01:55]} 46. Qxd4 {[%emt 0:00:02]} Bxd4+ {[%emt 0:00:01]} 47. Kf1 {[%emt 0:01:00]} Kg8 {[%emt 0:00:05]} 48. Rc1 {[%emt 0:00:44]} Rd8 {[%emt 0:00:01]} 49. Rc8 {[%emt 0:01:34]} Bf6 {[%emt 0:00:02]} 50. Ke2 {[%emt 0:00:36]} Kf7 {[%emt 0:00:00]} 51. Kf3 1/2-1/2